[Event "Titled Tuesday Blitz February 22 Early 2022"]
[White "Pajeken, Jakob Leon"]
[Black "Kozak, Adam"]
[WhiteFideId "12942839"]
[BlackFideId "753246"]
[WhiteElo "2351"]
[BlackElo "2459"]
[Result "0-1"]
[Round "02"]
[TimeControl "180+1"]
[Date "2022.02.22"]
[WhiteClock "0:00:36"]
[BlackClock "0:00:49"]

1. Nf3 {[%clk 0:02:59]}  d5 {[%clk 0:02:57]} 2. d4 {[%clk 0:02:59]}  Nf6 {[%clk 0:02:55]} 3. c4 {[%clk 0:02:59]}  e6 {[%clk 0:02:55]} 4. e3 {[%clk 0:02:58]}  Be7 {[%clk 0:02:55]} 5. Nbd2 {[%clk 0:02:55]}  O-O {[%clk 0:02:55]} 6. Bd3 {[%clk 0:02:55]}  a6 {[%clk 0:02:54]} 7. O-O {[%clk 0:02:54]}  dxc4 {[%clk 0:02:55]} 8. Nxc4 {[%clk 0:02:55]}  b5 {[%clk 0:02:55]} 9. Nce5 {[%clk 0:02:54]}  Bb7 {[%clk 0:02:55]} 10. Qc2 {[%clk 0:02:48]}  Nbd7 {[%clk 0:02:52]} 11. Nc6 {[%clk 0:02:47]}  Bxc6 {[%clk 0:02:51]} 12. Qxc6 {[%clk 0:02:46]}  Rb8 {[%clk 0:02:44]} 13. Qxa6 {[%clk 0:02:40]}  Nc5 {[%clk 0:02:44]} 14. dxc5 {[%clk 0:02:38]}  Qxd3 {[%clk 0:02:43]} 15. b4 {[%clk 0:02:23]}  Nd5 {[%clk 0:02:42]} 16. Qa3 {[%clk 0:02:20]}  Qxa3 {[%clk 0:02:38]} 17. Bxa3 {[%clk 0:02:18]}  Ra8 {[%clk 0:02:39]} 18. Bb2 {[%clk 0:02:17]}  Nxb4 {[%clk 0:02:38]} 19. c6 {[%clk 0:02:07]}  Nxa2 {[%clk 0:02:31]} 20. Be5 {[%clk 0:02:03]}  b4 {[%clk 0:02:29]} 21. Nd4 {[%clk 0:02:02]}  Rfc8 {[%clk 0:02:04]} 22. g4 {[%clk 0:01:45]}  Bf6 {[%clk 0:02:00]} 23. Bxf6 {[%clk 0:01:42]}  gxf6 {[%clk 0:02:01]} 24. Rfb1 {[%clk 0:01:40]}  Rcb8 {[%clk 0:01:58]} 25. Rb2 {[%clk 0:01:39]}  e5 {[%clk 0:01:40]} 26. Nb3 {[%clk 0:00:49]}  Nc3 {[%clk 0:01:38]} 27. Rxa8 {[%clk 0:00:49]}  Rxa8 {[%clk 0:01:38]} 28. Nc5 {[%clk 0:00:49]}  Nd5 {[%clk 0:01:32]} 29. e4 {[%clk 0:00:49]}  Ra1+ {[%clk 0:01:31]} 30. Kg2 {[%clk 0:00:48]}  Nf4+ {[%clk 0:01:32]} 31. Kg3 {[%clk 0:00:47]}  Rg1+ {[%clk 0:01:28]} 32. Kf3 {[%clk 0:00:47]}  Rc1 {[%clk 0:01:28]} 33. Na4 {[%clk 0:00:40]}  Rxc6 {[%clk 0:01:06]} 34. Rxb4 {[%clk 0:00:40]}  Rc2 {[%clk 0:01:05]} 35. Rb2 {[%clk 0:00:38]}  Rc1 {[%clk 0:01:04]} 36. h4 {[%clk 0:00:37]}  h6 {[%clk 0:01:03]} 37. g5 {[%clk 0:00:36]}  hxg5 {[%clk 0:01:03]} 38. hxg5 {[%clk 0:00:37]}  fxg5 {[%clk 0:00:58]} 39. Kg4 {[%clk 0:00:37]}  f6 {[%clk 0:00:58]} 40. Kf5 {[%clk 0:00:37]}  Kf7 {[%clk 0:00:54]} 41. Rb7 {[%clk 0:00:37]}  Ne6 {[%clk 0:00:50]} 42. Nb6 {[%clk 0:00:36]}  Rg1 {[%clk 0:00:49]} 0-1


[Site "https://www.chess.com"]

[Event "Titled Tuesday Blitz February 22 Early 2022"]
[White "Papp, Levente"]
[Black "Sadhwani, Raunak"]
[WhiteFideId "751243"]
[BlackFideId "35093487"]
[WhiteElo "2308"]
[BlackElo "2616"]
[Result "1-0"]
[Round "02"]
[TimeControl "180+1"]
[Date "2022.02.22"]
[WhiteClock "0:00:12"]
[BlackClock "0:00:48"]

1. g3 {[%clk 0:03:00]}  e5 {[%clk 0:02:59]} 2. c4 {[%clk 0:03:00]}  Nc6 {[%clk 0:02:58]} 3. Bg2 {[%clk 0:03:00]}  Bc5 {[%clk 0:02:58]} 4. Nc3 {[%clk 0:03:00]}  d6 {[%clk 0:02:57]} 5. e3 {[%clk 0:03:00]}  a6 {[%clk 0:02:57]} 6. Nge2 {[%clk 0:03:00]}  Ba7 {[%clk 0:02:56]} 7. O-O {[%clk 0:03:00]}  Nge7 {[%clk 0:02:56]} 8. d4 {[%clk 0:03:01]}  h5 {[%clk 0:02:57]} 9. h3 {[%clk 0:02:58]}  h4 {[%clk 0:02:56]} 10. g4 {[%clk 0:02:58]}  f5 {[%clk 0:02:57]} 11. d5 {[%clk 0:02:56]}  Nb8 {[%clk 0:02:46]} 12. gxf5 {[%clk 0:02:33]}  Nxf5 {[%clk 0:02:46]} 13. e4 {[%clk 0:02:30]}  Nd4 {[%clk 0:02:46]} 14. Kh2 {[%clk 0:02:21]}  Nxe2 {[%clk 0:02:37]} 15. Nxe2 {[%clk 0:02:08]}  g5 {[%clk 0:02:37]} 16. Be3 {[%clk 0:02:01]}  Nd7 {[%clk 0:02:30]} 17. Qd2 {[%clk 0:01:47]}  Rg8 {[%clk 0:02:30]} 18. Bf3 {[%clk 0:01:43]}  Nf6 {[%clk 0:02:14]} 19. Bxa7 {[%clk 0:01:19]}  Rxa7 {[%clk 0:02:15]} 20. Rg1 {[%clk 0:01:09]}  Qe7 {[%clk 0:01:21]} 21. Rac1 {[%clk 0:00:52]}  a5 {[%clk 0:01:14]} 22. Qe3 {[%clk 0:00:45]}  b6 {[%clk 0:01:14]} 23. Bg4 {[%clk 0:00:40]}  Bxg4 {[%clk 0:01:11]} 24. hxg4 {[%clk 0:00:41]}  Ra8 {[%clk 0:01:12]} 25. f3 {[%clk 0:00:39]}  Kf7 {[%clk 0:01:12]} 26. Nc3 {[%clk 0:00:29]}  Kg6 {[%clk 0:01:11]} 27. Nd1 {[%clk 0:00:28]}  Raf8 {[%clk 0:01:09]} 28. Qe2 {[%clk 0:00:27]}  Nd7 {[%clk 0:01:07]} 29. Ne3 {[%clk 0:00:27]}  Rf4 {[%clk 0:01:03]} 30. Nf5 {[%clk 0:00:27]}  Qf6 {[%clk 0:01:03]} 31. b3 {[%clk 0:00:24]}  Nc5 {[%clk 0:01:04]} 32. Qe3 {[%clk 0:00:22]}  Ra8 {[%clk 0:00:49]} 33. a3 {[%clk 0:00:22]}  a4 {[%clk 0:00:48]} 34. b4 {[%clk 0:00:23]}  Nb3 {[%clk 0:00:49]} 35. Rcf1 {[%clk 0:00:12]}  Nd4 {[%clk 0:00:48]} 36. Nxd4 {[%clk 0:00:12]}  exd4 {[%clk 0:00:48]} 37. Qd3 {[%clk 0:00:13]}  Rf8 {[%clk 0:00:48]} 38. e5+ {[%clk 0:00:12]} 1-0


[Site "https://www.chess.com"]

[Event "Titled Tuesday Blitz February 22 Early 2022"]
[White "Papp, Petra"]
[Black "De Souza Sa, Apolo"]
[WhiteFideId "739049"]
[BlackFideId "324225390"]
[WhiteElo "2259"]
[BlackElo "1828"]
[Result "1/2-1/2"]
[Round "02"]
[TimeControl "180+1"]
[Date "2022.02.22"]
[WhiteClock "0:01:05"]
[BlackClock "0:01:28"]

1. d4 {[%clk 0:03:00]}  Nf6 {[%clk 0:02:59]} 2. c4 {[%clk 0:03:00]}  g6 {[%clk 0:02:59]} 3. Nc3 {[%clk 0:03:00]}  d5 {[%clk 0:03:00]} 4. cxd5 {[%clk 0:02:54]}  Nxd5 {[%clk 0:03:00]} 5. Bg5 {[%clk 0:02:50]}  Bg7 {[%clk 0:02:58]} 6. Nf3 {[%clk 0:02:49]}  Nxc3 {[%clk 0:02:57]} 7. bxc3 {[%clk 0:02:49]}  c5 {[%clk 0:02:58]} 8. Rc1 {[%clk 0:02:47]}  Nc6 {[%clk 0:02:58]} 9. e3 {[%clk 0:02:44]}  Bg4 {[%clk 0:02:57]} 10. Be2 {[%clk 0:02:38]}  cxd4 {[%clk 0:02:55]} 11. cxd4 {[%clk 0:02:37]}  Bxf3 {[%clk 0:02:53]} 12. Bxf3 {[%clk 0:02:37]}  Qa5+ {[%clk 0:02:53]} 13. Qd2 {[%clk 0:02:32]}  Qxg5 {[%clk 0:02:52]} 14. Rxc6 {[%clk 0:02:32]}  O-O {[%clk 0:02:48]} 15. Rc5 {[%clk 0:02:29]}  Qh4 {[%clk 0:02:41]} 16. O-O {[%clk 0:02:25]}  e5 {[%clk 0:02:33]} 17. Bxb7 {[%clk 0:02:18]}  Rab8 {[%clk 0:02:27]} 18. Bf3 {[%clk 0:01:58]}  exd4 {[%clk 0:02:26]} 19. exd4 {[%clk 0:01:57]}  Bxd4 {[%clk 0:02:14]} 20. Rd5 {[%clk 0:01:49]}  Rfd8 {[%clk 0:01:56]} 21. Rd1 {[%clk 0:01:33]}  Bb6 {[%clk 0:01:32]} 22. g3 {[%clk 0:01:17]}  Qf6 {[%clk 0:01:30]} 23. Kg2 {[%clk 0:01:15]}  Rxd5 {[%clk 0:01:28]} 24. Qxd5 {[%clk 0:01:09]}  Rd8 {[%clk 0:01:28]} 25. Qb3 {[%clk 0:01:06]}  Rxd1 {[%clk 0:01:27]} 26. Qxd1 {[%clk 0:01:05]}  Qd4 {[%clk 0:01:28]} 1/2-1/2


[Site "https://www.chess.com"]

[Event "Titled Tuesday Blitz February 22 Early 2022"]
[White "Petesch, Gabriel"]
[Black "Goldin, Roman"]
[WhiteFideId "2032465"]
[BlackFideId "2803860"]
[WhiteElo "2374"]
[BlackElo "2312"]
[Result "1-0"]
[Round "02"]
[TimeControl "180+1"]
[Date "2022.02.22"]
[WhiteClock "0:00:03"]
[BlackClock "0:00:01"]

1. Nf3 {[%clk 0:03:00]}  Nf6 {[%clk 0:02:59]} 2. g3 {[%clk 0:03:01]}  b5 {[%clk 0:02:58]} 3. Bg2 {[%clk 0:03:02]}  Bb7 {[%clk 0:02:58]} 4. O-O {[%clk 0:03:02]}  c5 {[%clk 0:02:56]} 5. d3 {[%clk 0:03:01]}  d6 {[%clk 0:02:49]} 6. Nc3 {[%clk 0:03:01]}  b4 {[%clk 0:02:47]} 7. Ne4 {[%clk 0:02:57]}  Nxe4 {[%clk 0:02:46]} 8. dxe4 {[%clk 0:02:57]}  Bxe4 {[%clk 0:02:44]} 9. c3 {[%clk 0:02:57]}  bxc3 {[%clk 0:02:42]} 10. bxc3 {[%clk 0:02:53]}  Qd7 {[%clk 0:02:25]} 11. Bf4 {[%clk 0:02:49]}  g6 {[%clk 0:02:23]} 12. Qd2 {[%clk 0:02:44]}  Bg7 {[%clk 0:02:22]} 13. Bh6 {[%clk 0:02:43]}  O-O {[%clk 0:02:20]} 14. Bxg7 {[%clk 0:02:43]}  Kxg7 {[%clk 0:02:20]} 15. Qf4 {[%clk 0:02:22]}  Bc6 {[%clk 0:02:04]} 16. Rfd1 {[%clk 0:02:19]}  Qf5 {[%clk 0:01:57]} 17. Qh4 {[%clk 0:02:01]}  Qf6 {[%clk 0:01:31]} 18. Qc4 {[%clk 0:01:55]}  Nd7 {[%clk 0:01:29]} 19. Qa6 {[%clk 0:01:43]}  Rfc8 {[%clk 0:01:24]} 20. Qa3 {[%clk 0:01:38]}  Ne5 {[%clk 0:01:21]} 21. Nxe5 {[%clk 0:01:32]}  Qxe5 {[%clk 0:01:20]} 22. e3 {[%clk 0:01:30]}  Bxg2 {[%clk 0:01:19]} 23. Kxg2 {[%clk 0:01:31]}  Rcb8 {[%clk 0:01:17]} 24. Rd2 {[%clk 0:01:10]}  Rb7 {[%clk 0:01:13]} 25. Rad1 {[%clk 0:01:08]}  Rab8 {[%clk 0:01:13]} 26. c4 {[%clk 0:01:04]}  Qe4+ {[%clk 0:01:03]} 27. Kg1 {[%clk 0:01:03]}  Qxc4 {[%clk 0:01:03]} 28. Rc1 {[%clk 0:00:58]}  Rb1 {[%clk 0:01:02]} 29. Rdd1 {[%clk 0:00:58]}  Rxc1 {[%clk 0:00:57]} 30. Rxc1 {[%clk 0:00:59]}  Qe2 {[%clk 0:00:50]} 31. Qxa7 {[%clk 0:00:54]}  Rb2 {[%clk 0:00:48]} 32. Rf1 {[%clk 0:00:55]}  Kf6 {[%clk 0:00:45]} 33. a4 {[%clk 0:00:53]}  h5 {[%clk 0:00:45]} 34. h4 {[%clk 0:00:49]}  Qd2 {[%clk 0:00:39]} 35. Qa8 {[%clk 0:00:38]}  c4 {[%clk 0:00:38]} 36. Qh8+ {[%clk 0:00:33]}  Ke6 {[%clk 0:00:35]} 37. Qc8+ {[%clk 0:00:32]}  Kf6 {[%clk 0:00:35]} 38. Qxc4 {[%clk 0:00:32]}  Rb4 {[%clk 0:00:31]} 39. Qc6 {[%clk 0:00:30]}  Qd3 {[%clk 0:00:23]} 40. a5 {[%clk 0:00:19]}  Rc4 {[%clk 0:00:22]} 41. Qb5 {[%clk 0:00:14]}  d5 {[%clk 0:00:18]} 42. a6 {[%clk 0:00:14]}  e6 {[%clk 0:00:15]} 43. a7 {[%clk 0:00:13]}  Qa3 {[%clk 0:00:16]} 44. Qb8 {[%clk 0:00:12]}  Ra4 {[%clk 0:00:16]} 45. Qh8+ {[%clk 0:00:10]}  Ke7 {[%clk 0:00:16]} 46. Rb1 {[%clk 0:00:09]}  Rxa7 {[%clk 0:00:15]} 47. Rb8 {[%clk 0:00:09]}  Kd6 {[%clk 0:00:10]} 48. Rd8+ {[%clk 0:00:07]}  Kc5 {[%clk 0:00:08]} 49. Qd4+ {[%clk 0:00:06]}  Kb5 {[%clk 0:00:07]} 50. Rb8+ {[%clk 0:00:06]}  Kc6 {[%clk 0:00:03]} 51. Qb6+ {[%clk 0:00:06]}  Kd7 {[%clk 0:00:03]} 52. Qd8+ {[%clk 0:00:05]}  Kc6 {[%clk 0:00:04]} 53. Rb6+ {[%clk 0:00:03]}  Kc5 {[%clk 0:00:04]} 54. Qd6+ {[%clk 0:00:02]}  Kc4 {[%clk 0:00:04]} 55. Rc6+ {[%clk 0:00:03]}  Kd3 {[%clk 0:00:04]} 56. Qb8 {[%clk 0:00:02]}  Qa1+ {[%clk 0:00:02]} 57. Kg2 {[%clk 0:00:02]}  Qa3 {[%clk 0:00:01]} 58. Qb1+ {[%clk 0:00:02]}  Kd2 {[%clk 0:00:01]} 59. Rc2+ {[%clk 0:00:02]}  Kd3 {[%clk 0:00:01]} 60. Ra2+ {[%clk 0:00:03]} 1-0


[Site "https://www.chess.com"]

[Event "Titled Tuesday Blitz February 22 Early 2022"]
[White "Petrova, Irina"]
[Black "Weishaeutel, Moritz"]
[WhiteFideId "14124122"]
[BlackFideId "12967300"]
[WhiteElo "1988"]
[BlackElo "2002"]
[Result "0-1"]
[Round "02"]
[TimeControl "180+1"]
[Date "2022.02.22"]
[WhiteClock "0:00:06"]
[BlackClock "0:00:43"]

1. e4 {[%clk 0:03:00]}  e5 {[%clk 0:03:00]} 2. Nf3 {[%clk 0:03:00]}  Nf6 {[%clk 0:03:00]} 3. Nxe5 {[%clk 0:02:58]}  Nc6 {[%clk 0:03:01]} 4. Nxc6 {[%clk 0:02:52]}  dxc6 {[%clk 0:03:01]} 5. d3 {[%clk 0:02:41]}  Bc5 {[%clk 0:03:02]} 6. Be2 {[%clk 0:02:29]}  h5 {[%clk 0:03:01]} 7. h3 {[%clk 0:02:29]}  Qd4 {[%clk 0:03:00]} 8. Rf1 {[%clk 0:02:29]}  Qd6 {[%clk 0:02:54]} 9. c3 {[%clk 0:02:24]}  Bb6 {[%clk 0:02:45]} 10. Nd2 {[%clk 0:02:23]}  Qh2 {[%clk 0:02:42]} 11. Bf3 {[%clk 0:02:17]}  Be6 {[%clk 0:02:42]} 12. Nc4 {[%clk 0:02:09]}  O-O-O {[%clk 0:02:20]} 13. Nxb6+ {[%clk 0:02:08]}  axb6 {[%clk 0:02:21]} 14. Bg5 {[%clk 0:02:01]}  Bc4 {[%clk 0:02:19]} 15. Qa4 {[%clk 0:01:42]}  Bxd3 {[%clk 0:02:10]} 16. O-O-O {[%clk 0:01:41]}  Kb8 {[%clk 0:02:05]} 17. Rfe1 {[%clk 0:01:25]}  Qe5 {[%clk 0:02:00]} 18. Bxf6 {[%clk 0:01:10]}  Qxf6 {[%clk 0:02:00]} 19. e5 {[%clk 0:01:10]}  Qg5+ {[%clk 0:01:57]} 20. Re3 {[%clk 0:01:06]}  Bb5 {[%clk 0:01:54]} 21. Qb3 {[%clk 0:00:56]}  Rxd1+ {[%clk 0:01:50]} 22. Qxd1 {[%clk 0:00:54]}  Rd8 {[%clk 0:01:38]} 23. Qb3 {[%clk 0:00:53]}  Qf4 {[%clk 0:01:38]} 24. g3 {[%clk 0:00:47]}  Qf5 {[%clk 0:01:24]} 25. c4 {[%clk 0:00:40]}  Ba6 {[%clk 0:01:08]} 26. Qc3 {[%clk 0:00:17]}  Qxh3 {[%clk 0:01:03]} 27. Re1 {[%clk 0:00:17]}  Qe6 {[%clk 0:00:53]} 28. b3 {[%clk 0:00:16]}  Qf5 {[%clk 0:00:49]} 29. Qb4 {[%clk 0:00:12]}  Qxf3 {[%clk 0:00:46]} 30. Qe7 {[%clk 0:00:12]}  Qd3 {[%clk 0:00:44]} 31. Rh1 {[%clk 0:00:06]}  Qc3+ {[%clk 0:00:41]} 32. Kb1 {[%clk 0:00:06]}  Rd2 {[%clk 0:00:42]} 33. Qe8+ {[%clk 0:00:06]}  Ka7 {[%clk 0:00:43]} 0-1


[Site "https://www.chess.com"]

[Event "Titled Tuesday Blitz February 22 Early 2022"]
[White "Pinheiro, Iung Alicio de O."]
[Black "Indjic, Aleksandar"]
[WhiteFideId "2104350"]
[BlackFideId "911925"]
[WhiteElo "2587"]
[BlackElo "2616"]
[Result "0-1"]
[Round "02"]
[TimeControl "180+1"]
[Date "2022.02.22"]
[WhiteClock "0:00:11"]
[BlackClock "0:01:25"]

1. e4 {[%clk 0:03:00]}  c6 {[%clk 0:03:00]} 2. Nf3 {[%clk 0:02:57]}  d5 {[%clk 0:03:00]} 3. Nc3 {[%clk 0:02:57]}  Bg4 {[%clk 0:02:57]} 4. h3 {[%clk 0:02:57]}  Bxf3 {[%clk 0:02:56]} 5. Qxf3 {[%clk 0:02:58]}  e6 {[%clk 0:02:55]} 6. g3 {[%clk 0:02:54]}  Nf6 {[%clk 0:02:46]} 7. Bg2 {[%clk 0:02:48]}  Nbd7 {[%clk 0:02:43]} 8. O-O {[%clk 0:02:44]}  d4 {[%clk 0:02:34]} 9. Nb1 {[%clk 0:02:43]}  h5 {[%clk 0:02:32]} 10. d3 {[%clk 0:02:35]}  h4 {[%clk 0:02:30]} 11. Bf4 {[%clk 0:01:57]}  Nh5 {[%clk 0:02:20]} 12. a4 {[%clk 0:01:39]}  g5 {[%clk 0:02:10]} 13. Bd2 {[%clk 0:01:35]}  Ne5 {[%clk 0:02:09]} 14. Qd1 {[%clk 0:01:29]}  hxg3 {[%clk 0:02:09]} 15. fxg3 {[%clk 0:00:54]}  Nxg3 {[%clk 0:02:08]} 16. Rf2 {[%clk 0:00:55]}  Nh5 {[%clk 0:01:58]} 17. Na3 {[%clk 0:00:54]}  Nf4 {[%clk 0:01:57]} 18. Bxf4 {[%clk 0:00:49]}  gxf4 {[%clk 0:01:58]} 19. Rxf4 {[%clk 0:00:50]}  Qg5 {[%clk 0:01:56]} 20. Rf2 {[%clk 0:00:44]}  Rxh3 {[%clk 0:01:49]} 21. Nc4 {[%clk 0:00:36]}  Nxc4 {[%clk 0:01:46]} 22. dxc4 {[%clk 0:00:35]}  d3 {[%clk 0:01:44]} 23. Kf1 {[%clk 0:00:26]}  Rg3 {[%clk 0:01:39]} 24. cxd3 {[%clk 0:00:22]}  Bc5 {[%clk 0:01:38]} 25. d4 {[%clk 0:00:23]}  O-O-O {[%clk 0:01:37]} 26. Rd2 {[%clk 0:00:13]}  Qf4+ {[%clk 0:01:30]} 27. Kg1 {[%clk 0:00:11]}  Qe3+ {[%clk 0:01:26]} 28. Kf1 {[%clk 0:00:11]}  Rxd4 {[%clk 0:01:25]} 0-1


[Site "https://www.chess.com"]

[Event "Titled Tuesday Blitz February 22 Early 2022"]
[White "Pires, Marcos Vinicius Torsani"]
[Black "Namitbir Singh Walia"]
[WhiteFideId "2118939"]
[BlackFideId "35071068"]
[WhiteElo "2273"]
[BlackElo "1479"]
[Result "0-1"]
[Round "02"]
[TimeControl "180+1"]
[Date "2022.02.22"]
[WhiteClock "0:00:18"]
[BlackClock "0:00:07"]

1. e4 {[%clk 0:03:00]}  c5 {[%clk 0:02:59]} 2. c3 {[%clk 0:03:00]}  d5 {[%clk 0:02:58]} 3. exd5 {[%clk 0:03:01]}  Qxd5 {[%clk 0:02:59]} 4. d4 {[%clk 0:03:01]}  Nc6 {[%clk 0:02:50]} 5. Nf3 {[%clk 0:03:00]}  Bg4 {[%clk 0:02:50]} 6. Be2 {[%clk 0:03:00]}  Nf6 {[%clk 0:02:46]} 7. c4 {[%clk 0:02:59]}  Qd7 {[%clk 0:02:41]} 8. d5 {[%clk 0:02:56]}  Bxf3 {[%clk 0:02:40]} 9. Bxf3 {[%clk 0:02:55]}  Nd4 {[%clk 0:02:40]} 10. O-O {[%clk 0:02:54]}  Nxf3+ {[%clk 0:02:36]} 11. Qxf3 {[%clk 0:02:55]}  g6 {[%clk 0:02:34]} 12. Nc3 {[%clk 0:02:40]}  Bg7 {[%clk 0:02:34]} 13. Be3 {[%clk 0:02:35]}  b6 {[%clk 0:02:26]} 14. Rad1 {[%clk 0:02:13]}  O-O {[%clk 0:02:25]} 15. Rfe1 {[%clk 0:02:12]}  Rfe8 {[%clk 0:02:23]} 16. h3 {[%clk 0:02:09]}  Rad8 {[%clk 0:02:17]} 17. Bg5 {[%clk 0:02:08]}  Qb7 {[%clk 0:02:06]} 18. Re2 {[%clk 0:01:50]}  h6 {[%clk 0:01:58]} 19. Bh4 {[%clk 0:01:48]}  g5 {[%clk 0:01:29]} 20. Bg3 {[%clk 0:01:47]}  e6 {[%clk 0:01:29]} 21. Be5 {[%clk 0:01:39]}  Nh7 {[%clk 0:01:25]} 22. Bxg7 {[%clk 0:01:36]}  Kxg7 {[%clk 0:01:26]} 23. Red2 {[%clk 0:01:31]}  e5 {[%clk 0:01:23]} 24. Ne4 {[%clk 0:01:22]}  Qd7 {[%clk 0:01:13]} 25. Ng3 {[%clk 0:01:12]}  Nf6 {[%clk 0:00:58]} 26. Nf5+ {[%clk 0:01:02]}  Kg6 {[%clk 0:00:57]} 27. g4 {[%clk 0:01:03]}  e4 {[%clk 0:00:53]} 28. Qg3 {[%clk 0:00:59]}  h5 {[%clk 0:00:44]} 29. Re2 {[%clk 0:00:54]}  hxg4 {[%clk 0:00:33]} 30. hxg4 {[%clk 0:00:54]}  Rh8 {[%clk 0:00:34]} 31. Kg2 {[%clk 0:00:43]}  Rh7 {[%clk 0:00:34]} 32. Rh1 {[%clk 0:00:41]}  Rxh1 {[%clk 0:00:30]} 33. Kxh1 {[%clk 0:00:42]}  Rh8+ {[%clk 0:00:30]} 34. Kg2 {[%clk 0:00:42]}  b5 {[%clk 0:00:20]} 35. b3 {[%clk 0:00:42]}  bxc4 {[%clk 0:00:19]} 36. bxc4 {[%clk 0:00:43]}  Nxg4 {[%clk 0:00:13]} 37. Qxg4 {[%clk 0:00:43]}  Qxf5 {[%clk 0:00:14]} 38. Rxe4 {[%clk 0:00:37]}  Qf6 {[%clk 0:00:11]} 39. Qf3 {[%clk 0:00:29]}  Qd6 {[%clk 0:00:10]} 40. Qg3 {[%clk 0:00:27]}  Qd7 {[%clk 0:00:10]} 41. Re1 {[%clk 0:00:22]}  Rh4 {[%clk 0:00:10]} 42. f3 {[%clk 0:00:20]}  Qa4 {[%clk 0:00:09]} 43. Re2 {[%clk 0:00:20]}  Qd1 {[%clk 0:00:09]} 44. Qe1 {[%clk 0:00:18]}  Qd3 {[%clk 0:00:05]} 45. Re3 {[%clk 0:00:15]}  Qxc4 {[%clk 0:00:05]} 46. d6 {[%clk 0:00:15]}  Rd4 {[%clk 0:00:05]} 47. Re5 {[%clk 0:00:12]}  Rxd6 {[%clk 0:00:05]} 48. Qe4+ {[%clk 0:00:13]}  Qxe4 {[%clk 0:00:05]} 49. fxe4 {[%clk 0:00:14]}  Rd2+ {[%clk 0:00:05]} 50. Kf3 {[%clk 0:00:14]}  Rxa2 {[%clk 0:00:06]} 51. Rxc5 {[%clk 0:00:15]}  Ra3+ {[%clk 0:00:06]} 52. Kg4 {[%clk 0:00:15]}  f6 {[%clk 0:00:07]} 53. Rc6 {[%clk 0:00:15]}  Ra4 {[%clk 0:00:07]} 54. Kf3 {[%clk 0:00:15]}  Rb4 {[%clk 0:00:07]} 55. e5 {[%clk 0:00:15]}  Rf4+ {[%clk 0:00:07]} 56. Ke3 {[%clk 0:00:15]}  Kf7 {[%clk 0:00:07]} 57. exf6 {[%clk 0:00:15]}  Rxf6 {[%clk 0:00:08]} 58. Rc7+ {[%clk 0:00:16]}  Kg6 {[%clk 0:00:08]} 59. Rxa7 {[%clk 0:00:17]}  Kh5 {[%clk 0:00:08]} 60. Ra1 {[%clk 0:00:15]}  g4 {[%clk 0:00:07]} 61. Rh1+ {[%clk 0:00:15]}  Kg5 {[%clk 0:00:08]} 62. Ke4 {[%clk 0:00:15]}  g3 {[%clk 0:00:08]} 63. Ke3 {[%clk 0:00:14]}  Kg4 {[%clk 0:00:08]} 64. Ke2 {[%clk 0:00:13]}  g2 {[%clk 0:00:08]} 65. Rh8 {[%clk 0:00:14]}  Kg3 {[%clk 0:00:07]} 66. Rg8+ {[%clk 0:00:14]}  Kh2 {[%clk 0:00:07]} 67. Rh8+ {[%clk 0:00:15]}  Kg1 {[%clk 0:00:07]} 68. Rh7 {[%clk 0:00:16]}  Rf5 {[%clk 0:00:07]} 69. Rh6 {[%clk 0:00:14]}  Rf2+ {[%clk 0:00:07]} 70. Ke1 {[%clk 0:00:14]}  Rf5 {[%clk 0:00:07]} 71. Ke2 {[%clk 0:00:14]}  Rf2+ {[%clk 0:00:06]} 72. Ke1 {[%clk 0:00:14]}  Rf8 {[%clk 0:00:07]} 73. Ke2 {[%clk 0:00:14]}  Re8+ {[%clk 0:00:07]} 74. Kd2 {[%clk 0:00:14]}  Re5 {[%clk 0:00:05]} 75. Rh8 {[%clk 0:00:15]}  Kf2 {[%clk 0:00:04]} 76. Rf8+ {[%clk 0:00:15]}  Kg3 {[%clk 0:00:04]} 77. Rg8+ {[%clk 0:00:16]}  Kf3 {[%clk 0:00:04]} 78. Rf8+ {[%clk 0:00:16]}  Kg4 {[%clk 0:00:05]} 79. Rg8+ {[%clk 0:00:17]}  Rg5 {[%clk 0:00:06]} 80. Rxg5+ {[%clk 0:00:18]}  Kxg5 {[%clk 0:00:07]} 0-1


[Site "https://www.chess.com"]

[Event "Titled Tuesday Blitz February 22 Early 2022"]
[White "Postnikov, Daniil"]
[Black "Zierk, Steven"]
[WhiteFideId "4166329"]
[BlackFideId "2034255"]
[WhiteElo "2261"]
[BlackElo "2494"]
[Result "0-1"]
[Round "02"]
[TimeControl "180+1"]
[Date "2022.02.22"]
[WhiteClock "0:00:02"]
[BlackClock "0:00:09"]

1. e4 {[%clk 0:03:00]}  e6 {[%clk 0:02:57]} 2. d4 {[%clk 0:03:00]}  d5 {[%clk 0:02:58]} 3. exd5 {[%clk 0:03:00]}  exd5 {[%clk 0:02:59]} 4. Nf3 {[%clk 0:03:00]}  Nc6 {[%clk 0:02:59]} 5. c3 {[%clk 0:03:00]}  Bd6 {[%clk 0:02:57]} 6. Bd3 {[%clk 0:02:56]}  Bg4 {[%clk 0:02:55]} 7. h3 {[%clk 0:02:53]}  Bh5 {[%clk 0:02:55]} 8. O-O {[%clk 0:02:53]}  Nge7 {[%clk 0:02:55]} 9. Re1 {[%clk 0:02:53]}  Qd7 {[%clk 0:02:55]} 10. Nbd2 {[%clk 0:02:32]}  O-O-O {[%clk 0:02:42]} 11. Qc2 {[%clk 0:02:27]}  f6 {[%clk 0:02:40]} 12. b4 {[%clk 0:01:58]}  Rde8 {[%clk 0:02:35]} 13. a4 {[%clk 0:01:55]}  g5 {[%clk 0:02:32]} 14. a5 {[%clk 0:01:40]}  Bxf3 {[%clk 0:02:07]} 15. Nxf3 {[%clk 0:01:37]}  h5 {[%clk 0:02:05]} 16. b5 {[%clk 0:01:11]}  Nd8 {[%clk 0:02:05]} 17. b6 {[%clk 0:01:08]}  a6 {[%clk 0:02:04]} 18. bxc7 {[%clk 0:00:59]}  Ndc6 {[%clk 0:02:04]} 19. Nd2 {[%clk 0:00:52]}  h4 {[%clk 0:01:51]} 20. Nf1 {[%clk 0:00:37]}  g4 {[%clk 0:01:31]} 21. hxg4 {[%clk 0:00:37]}  Qxg4 {[%clk 0:01:24]} 22. Be2 {[%clk 0:00:29]}  Qd7 {[%clk 0:01:18]} 23. Bf3 {[%clk 0:00:27]}  Qxc7 {[%clk 0:01:06]} 24. Ba3 {[%clk 0:00:26]}  Bxa3 {[%clk 0:00:48]} 25. Rxa3 {[%clk 0:00:27]}  Nxd4 {[%clk 0:00:47]} 26. Bg4+ {[%clk 0:00:20]}  f5 {[%clk 0:00:47]} 27. Qd3 {[%clk 0:00:18]}  fxg4 {[%clk 0:00:43]} 28. Qxd4 {[%clk 0:00:18]}  Reg8 {[%clk 0:00:28]} 29. Rb3 {[%clk 0:00:13]}  g3 {[%clk 0:00:23]} 30. fxg3 {[%clk 0:00:09]}  hxg3 {[%clk 0:00:22]} 31. Ne3 {[%clk 0:00:06]}  Nc6 {[%clk 0:00:20]} 32. Qxd5 {[%clk 0:00:05]}  Rf8 {[%clk 0:00:17]} 33. Qe6+ {[%clk 0:00:04]}  Kb8 {[%clk 0:00:17]} 34. Nd5 {[%clk 0:00:04]}  Qxa5 {[%clk 0:00:13]} 35. Rxb7+ {[%clk 0:00:02]}  Kxb7 {[%clk 0:00:11]} 36. Qd7+ {[%clk 0:00:03]}  Kb8 {[%clk 0:00:09]} 37. Rb1+ {[%clk 0:00:02]}  Nb4 {[%clk 0:00:09]} 38. Rxb4+ {[%clk 0:00:02]}  Qxb4 {[%clk 0:00:09]} 39. cxb4 {[%clk 0:00:02]}  Rh1+ {[%clk 0:00:09]} 0-1


[Site "https://www.chess.com"]